bitfinex/quotes_ETHUSD_20220226
["timestamp","ask_amount","ask_price","bid_price","bid_amount"]
[1645854911035,3.6439,2779.1,2778.6,0.01867733]
[1645854911278,0.511,2779.0,2777.7,1.80033346]
[1645854911482,0.90009,2778.5,2777.7,1.80033346]
[1645854911679,0.90009,2778.5,2777.5,7.80063346]
[1645854911885,0.90009,2778.5,2777.5,6.0003]
[1645854912288,0.90009,2778.5,2777.5,1.3]
[1645854912689,0.90009,2778.5,2777.9,0.00467699]
[1645854913287,4.40009,2778.5,2777.9,0.00467699]
[1645854913694,4.75979,2778.5,2777.2,8.45]
[1645854913892,4.91109,2778.5,2778.1,0.00467683]
[1645854914293,5.05499,2778.5,2778.1,0.00467683]
[1645854914492,0.4439,2778.4,2778.1,0.00467683]
[1645854914693,4.011,2778.3,2778.1,0.00467683]
[1645854914894,0.511,2778.3,2777.0,0.25]
[1645854915114,0.9003,2778.1,2776.9,2.8003]
[1645854915322,0.9003,2778.1,2776.5,4.63559167]
[1645854915323,1.1707,2778.0,2776.5,4.63559167]
[1645854915526,3.6439,2777.9,2776.6,0.00285498]
[1645854915724,0.511,2777.8,2776.6,0.00285498]
[1645854916223,1.411421,2777.8,2776.6,0.00285498]
[1645854916422,3.5,2777.7,2776.6,0.00285498]
[1645854916621,0.511,2777.6,2777.1,0.00468096]
[1645854917532,0.511,2777.6,2776.6,1.43275941]
[1645854917722,0.511,2777.6,2776.4,8.45]
[1645854917723,0.511,2777.6,2777.2,0.0045109]
[1645854918222,3.5,2777.5,2777.2,0.0045109]
[1645854918623,3.5,2777.5,2776.6,0.00285498]
[1645854918866,3.5,2777.5,2776.6,1.14245613]
[1645854919061,3.5,2777.5,2777.2,0.00459276]
[1645854919262,0.511,2777.6,2777.2,0.00459276]
[1645854919864,0.511,2777.6,2776.5,0.00285498]
[1645854920264,0.511,2777.6,2776.5,1.43479017]
[1645854920462,0.511,2777.6,2776.6,0.00285498]
[1645854921264,3.5,2777.5,2776.6,0.00285498]
[1645854921466,0.511,2777.6,2776.6,0.00285498]
[1645854922264,3.5,2777.5,2776.6,0.00285498]
[1645854922543,3.5,2777.5,2777.0,0.0046743]
[1645854922733,0.511,2777.6,2777.0,0.0046743]
[1645854923534,0.511,2777.6,2776.6,0.00285498]
[1645854923736,0.53913144,2777.6,2777.2,0.00467412]
[1645854924636,0.53913144,2777.6,2776.6,0.00285498]
[1645854924836,3.5,2777.5,2776.6,0.00285498]
[1645854925035,0.53913144,2777.6,2777.3,0.00467601]
[1645854925435,3.5,2777.5,2777.3,0.00467601]
[1645854925837,3.5,2777.5,2776.6,0.00285498]
[1645854926256,3.5,2777.5,2777.3,0.00467601]
[1645854926459,0.53913144,2777.6,2777.3,0.00467601]
[1645854927061,0.53913144,2777.6,2776.6,0.00285498]
[1645854927263,0.02813144,2777.6,2776.6,0.00285498]
[1645854927565,0.02813144,2777.6,2777.3,0.00467596]
[1645854928267,0.02813144,2777.6,2776.6,0.00285498]
[1645854928565,0.02813144,2777.6,2777.3,0.00467582]
[1645854929565,0.02813144,2777.6,2776.6,0.00285498]
[1645854929768,0.02813144,2777.6,2777.3,0.00467582]
[1645854930830,0.02813144,2777.6,2776.4,0.00285498]
[1645854931032,0.02813144,2777.6,2777.3,0.00467582]
[1645854931833,3.52813144,2777.6,2776.4,0.00285498]
[1645854932036,1.80115,2777.4,2776.4,0.00285498]
[1645854932232,3.5,2777.3,2776.4,0.00285498]
[1645854932441,2.31215,2777.4,2776.4,0.00285498]
[1645854932631,3.5,2777.3,2776.4,0.00285498]
[1645854933032,3.49890172,2777.3,2776.4,0.00285498]
[1645854934574,0.9006943,2777.0,2776.7,0.00467275]
[1645854934775,4.4006943,2777.0,2776.7,0.00467275]
[1645854934972,4.76265569,2777.0,2776.7,0.00467275]
[1645854935174,5.27365569,2777.0,2776.7,0.00467275]
[1645854935370,4.76265569,2777.0,2776.7,0.00467275]
[1645854935570,4.4006943,2777.0,2776.4,0.00285498]
[1645854935770,4.4006943,2777.0,2776.7,0.00483314]
[1645854935972,0.9006943,2777.0,2776.7,0.00483314]
[1645854936270,4.4006943,2777.0,2776.7,0.00483314]
[1645854936673,4.4006943,2777.0,2776.3,0.01933547]
[1645854936873,4.4006943,2777.0,2776.0,0.00285498]
[1645854937077,4.4006943,2777.0,2776.7,0.00483314]
[1645854937510,0.9006943,2777.0,2776.7,0.00483314]
[1645854937710,0.90057,2777.1,2776.7,0.00483314]
[1645854937911,0.90057,2777.1,2776.0,0.14675498]
[1645854938112,0.90057,2777.1,2776.1,0.00285498]
[1645854938312,0.90057,2777.1,2776.7,0.00483314]
[1645854938715,0.02161819,2777.0,2776.7,0.00483314]
[1645854939315,0.02161819,2777.0,2776.1,0.00285498]
[1645854939316,0.90066,2776.7,2776.1,0.00285498]
[1645854939513,0.90066,2776.7,2776.3,0.01865104]
[1645854940315,0.90066,2776.7,2776.1,0.00285498]
[1645854940615,0.90066,2776.7,2776.4,0.00466237]
[1645854941560,0.90066,2776.7,2775.8,0.00285498]
[1645854941761,0.90066,2776.7,2776.4,0.00466232]
[1645854942463,0.90066,2776.7,2775.7,0.12006939]
[1645854942667,3.5,2776.6,2775.7,0.12006939]
[1645854943066,0.90066,2776.7,2775.7,0.12006939]
[1645854943667,0.90066,2776.7,2775.6,0.3939]
[1645854943868,0.92478048,2776.7,2775.6,0.3939]
[1645854944568,3.5,2776.6,2775.6,0.3939]
[1645854944772,0.92478048,2776.7,2775.6,0.3939]
[1645854945817,0.92478048,2776.7,2775.6,0.6939]
[1645854946015,0.92478048,2776.7,2775.6,0.3939]
[1645854946216,3.5,2776.6,2775.6,0.3939]
[1645854946417,0.92478048,2776.7,2775.6,0.3939]
[1645854946617,0.00498252,2776.3,2775.9,0.00498328]
[1645854947222,0.90576252,2776.3,2775.9,0.00498328]
[1645854947621,0.90078,2776.3,2775.6,0.3939]
[1645854947822,0.00498256,2776.2,2775.9,0.00498324]
[1645854948882,0.02412146,2776.6,2775.7,0.00284423]
[1645854949082,0.0049826,2776.2,2775.9,0.00498319]
[1645854950083,0.02412146,2776.6,2775.7,0.00284423]
[1645854950380,0.02412146,2776.6,2775.6,0.1439]
[1645854950381,0.0049826,2776.2,2775.9,0.00498319]
[1645854951182,0.90079,2776.3,2775.7,0.00284423]
[1645854951381,0.0049826,2776.2,2775.9,0.00498319]
[1645854952383,0.90079,2776.3,2775.5,0.00284423]
[1645854952817,0.0049826,2776.2,2775.9,0.00498319]
[1645854953419,0.0049826,2776.2,2775.2,0.01993775]
[1645854953617,0.90093,2775.9,2775.1,1.0]
[1645854954418,0.90093,2775.9,2775.0,0.05]
[1645854954820,0.90093,2775.9,2775.1,1.0]
[1645854955020,4.011,2775.8,2775.1,1.0]
[1645854955225,4.011,2775.8,2775.3,0.00498003]
[1645854956122,4.011,2775.8,2775.0,0.05]
[1645854957888,4.1551,2775.8,2775.0,0.05]
[1645854958784,4.17922831,2775.8,2775.0,0.05]
[1645854959585,4.17922831,2775.8,2775.0,0.05283276]
[1645854960021,4.17922831,2775.8,2775.3,0.00497826]
[1645854960421,0.67922831,2775.8,2775.3,0.00497826]
[1645854960619,0.02412831,2775.8,2775.3,0.00497826]
[1645854961016,0.02412831,2775.8,2775.0,0.05283276]
[1645854961217,0.02412831,2775.8,2775.4,0.00497813]
[1645854962118,0.02412831,2775.8,2775.5,1.78689661]
[1645854962319,0.02171548,2775.8,2775.6,0.20158394]
[1645854962518,0.02171548,2775.8,2775.6,0.50158394]
[1645854962927,1.548e-05,2775.8,2775.6,1.1597]
[1645854963223,1.548e-05,2775.8,2775.6,0.8597]
[1645854963424,1.548e-05,2775.8,2775.7,0.00283276]
[1645854964067,0.02412831,2775.8,2775.7,0.00283276]
[1645854964268,0.02412831,2775.8,2775.6,2.10241248]
[1645854964469,0.02412831,2775.8,2775.6,2.94526174]
[1645854964670,0.02412831,2775.8,2775.6,2.64526174]
[1645854964869,0.02412831,2775.8,2775.6,3.64767418]
[1645854965068,0.02412831,2775.8,2775.6,2.64767418]
[1645854965268,0.02412831,2775.8,2775.6,3.64767418]
[1645854965667,0.02412831,2775.8,2775.6,3.64526174]
[1645854966069,0.02412831,2775.8,2775.6,3.65023603]
[1645854966871,0.02412831,2775.8,2775.6,3.64526174]
[1645854967069,0.02412831,2775.8,2775.6,2.64526174]
[1645854967271,0.02412831,2775.8,2775.6,2.65023603]
[1645854967918,0.02412831,2775.8,2775.6,1.50497429]
[1645854968119,0.02412831,2775.8,2775.6,1.5]
[1645854968517,0.02412831,2775.8,2775.6,1.50497429]
[1645854968919,0.02412831,2775.8,2775.6,0.50497429]
[1645854969119,0.02412831,2775.8,2775.6,0.00497429]
[1645854969518,0.02412831,2775.8,2775.1,0.00283276]
[1645854970318,0.92509831,2775.8,2775.1,0.00283276]
[1645854971777,2.33717271,2775.8,2775.1,0.00283276]
[1645854972178,2.33717271,2775.8,2775.3,0.00497091]
[1645854972989,0.92509831,2775.8,2775.3,0.00497091]
[1645854973188,0.02412831,2775.8,2775.3,0.00497091]
[1645854973390,0.02412831,2775.8,2775.1,0.00283276]
[1645854976026,0.90102,2775.7,2775.1,0.00283276]
[1645854976224,0.90102,2775.7,2775.0,0.05]
[1645854976626,1.41202,2775.7,2775.0,0.05]
[1645854976828,2.3131336,2775.7,2775.0,0.05]
[1645854977227,2.3131336,2775.7,2775.2,0.00463473]
[1645854977633,0.90102,2775.7,2775.2,0.00463473]
[1645854977832,0.02412831,2775.8,2775.2,0.00463473]
[1645854978434,0.02412831,2775.8,2775.3,0.00495727]
[1645854978869,0.02412831,2775.8,2775.5,1.3225896]
[1645854979370,0.02412831,2775.8,2775.0,0.05]
[1645854979769,0.02412831,2775.8,2775.4,0.00495719]
[1645854980368,0.02412831,2775.8,2775.0,0.05]
[1645854980570,0.02412831,2775.8,2775.5,0.12781518]
[1645854980773,0.02412831,2775.8,2775.6,1.40627077]
[1645854980971,0.02412831,2775.8,2775.7,3.5]
[1645854981174,0.02412831,2775.8,2775.6,2.06597077]
[1645854981374,0.00495597,2776.1,2775.7,3.5]
[1645854981577,0.00495597,2776.1,2775.8,0.3597]
[1645854981774,5.597e-05,2776.1,2776.0,0.3597]
[1645854981971,5.597e-05,2776.1,2776.0,0.6597]
[1645854982275,0.00462719,2776.1,2776.0,0.6597]
[1645854982931,1.80103,2777.5,2776.0,4.1597]
[1645854982932,1.94493,2777.5,2776.0,4.1597]
[1645854983134,1.94493,2777.5,2776.1,3.86253276]
[1645854983333,1.80103,2777.5,2776.2,0.00283276]
[1645854983632,1.80103,2777.5,2776.2,0.13064794]
[1645854983836,1.80103,2777.5,2776.3,0.00283276]
[1645854984032,2.1151,2777.3,2776.3,0.00283276]
[1645854984532,2.1151,2777.3,2776.7,1.35978655]
[1645854984736,0.9005,2777.3,2776.3,0.00283276]
[1645854985534,0.00495561,2776.9,2776.3,0.00283276]
[1645854985933,0.00495561,2776.9,2776.8,1.05872841]
[1645854986134,0.00495561,2776.9,2776.3,0.00283276]
[1645854986374,1.94493,2777.5,2776.3,0.00283276]
[1645854986572,0.90049,2777.3,2776.3,0.00283276]
[1645854986772,0.00495557,2777.0,2776.4,0.12781518]
[1645854987174,0.00495557,2777.0,2776.5,1.20653432]
[1645854987578,0.1439,2777.6,2776.5,1.86623432]
[1645854987777,5.33149,2777.7,2776.5,1.86623432]
[1645854988075,0.00495565,2776.9,2776.5,1.86623432]
[1645854988578,0.00495565,2776.9,2776.5,2.46650432]
[1645854988775,4.4311,2777.7,2776.6,0.3597]
[1645854988980,4.4311,2777.7,2776.6,0.54545886]
[1645854989178,0.03171452,2776.8,2776.6,0.54545886]
[1645854989777,0.03171452,2776.8,2776.7,0.12781518]
[1645854990045,0.02675882,2776.8,2776.7,0.12781518]
[1645854990529,0.03171452,2776.8,2776.7,0.12781518]
[1645854991728,0.02675882,2776.8,2776.7,0.12781518]
[1645854992934,0.02675882,2776.8,2776.6,0.12781518]
[1645854994178,0.03141263,2776.8,2776.6,0.12781518]
[1645854994977,0.511,2776.7,2776.6,0.12781518]
[1645854995175,0.24976586,2776.5,2776.2,0.00283276]
[1645854995375,0.76076586,2776.5,2776.0,1.1267]
[1645854996376,1.66160586,2776.5,2776.0,1.1267]
[1645854996578,0.24976586,2776.5,2776.0,1.1267]
[1645854997544,0.00465422,2776.4,2776.0,1.1267]
[1645854998627,0.24976586,2776.5,2776.0,1.1267]
[1645854998827,0.00255439,2776.3,2776.0,1.1267]
[1645854999626,0.27206758,2776.5,2776.0,1.1267]
[1645855000027,0.00255439,2776.3,2776.0,1.1267]
[1645855001030,0.27206758,2776.5,2776.0,1.1267]
[1645855001265,0.00494166,2776.3,2776.0,1.1267]
[1645855002266,0.27206758,2776.5,2776.0,1.1267]
[1645855002465,0.00494166,2776.3,2776.0,1.1267]
[1645855003471,0.27206758,2776.5,2776.0,1.1267]
[1645855003671,0.00494166,2776.3,2776.0,1.1267]
[1645855003874,0.0317059,2776.3,2776.0,1.1267]
[1645855004671,0.02676424,2776.3,2776.0,1.1267]
[1645855004872,0.0317059,2776.3,2776.0,1.1267]
[1645855005918,0.02676424,2776.3,2776.0,1.1267]
[1645855006118,0.03153912,2776.3,2776.0,1.1267]
[1645855006919,0.02676424,2776.3,2776.0,1.1267]
[1645855007321,0.03153912,2776.3,2776.0,1.1267]
[1645855008323,0.02676424,2776.3,2776.0,1.1267]
[1645855008763,0.03153912,2776.3,2776.0,1.1267]
[1645855009368,0.03153912,2776.3,2774.7,1.8146537]
[1645855009671,5.0,2775.4,2773.9,0.11413335]
[1645855009876,5.0,2775.4,2773.4,2.68790656]
[1645855009877,5.02245566,2775.3,2775.2,0.01850425]
[1645855010174,6.382,2775.1,2772.9,0.25]
[1645855010376,5.0,2774.5,2772.9,0.25]
[1645855010578,0.9016266,2774.2,2772.9,0.2]
[1645855010875,1.40560598,2774.5,2772.9,0.2]
[1645855010876,0.01258465,2774.8,2773.8,1.0]
[1645855011077,1.2376,2775.1,2773.9,3.5]
[1645855011271,1.2111,2775.4,2773.9,3.5]
[1645855011472,3.6487,2776.1,2773.9,3.5]
[1645855011473,3.2901,2775.6,2775.4,1.31638]
[1645855011971,2.11734,2776.1,2774.6,0.25]
[1645855012173,2.11734,2776.1,2774.6,1.55]
[1645855012626,1.52285744,2776.0,2774.6,0.55]
[1645855012828,2.26144,2776.1,2774.7,3.8597]
[1645855013033,3.1102,2776.2,2775.6,1.03909762]
[1645855013231,3.1102,2776.2,2774.9,0.1954533]
[1645855013427,3.1102,2776.2,2774.8,1.0]
[1645855013627,3.1102,2776.2,2774.8,1.3]
[1645855013832,3.4699,2776.2,2774.8,0.3]
[1645855014030,3.4699,2776.2,2774.8,0.8]
[1645855014231,3.1102,2776.2,2774.9,0.3]
[1645855014433,3.1102,2776.2,2775.5,1.16952986]
[1645855014836,4.1102,2776.2,2775.5,1.16952986]
[1645855015034,3.1102,2776.2,2774.8,1.0]
[1645855015434,3.1102,2776.2,2774.8,1.09097898]
[1645855015734,0.00433532,2775.6,2775.1,0.00433622]
[1645855015934,0.00433532,2775.6,2775.5,1.27168676]
[1645855016133,3.1102,2776.2,2775.5,1.27168676]
[1645855016362,3.1102,2776.2,2774.9,0.00282008]
[1645855016562,0.00430959,2775.5,2775.1,0.00431026]
[1645855017371,3.1102,2776.2,2774.9,0.00282008]
[1645855017567,0.90086,2776.1,2775.1,1.01805734]
[1645855017770,0.00430963,2775.4,2775.2,0.00282008]
[1645855017970,0.00430963,2775.4,2775.1,1.02236756]
[1645855017971,0.00430963,2775.4,2775.1,0.00431022]
[1645855018570,1.04496,2776.1,2774.9,0.00282008]
[1645855018771,0.02677075,2775.6,2774.7,4.66452008]
[1645855018973,0.00430967,2775.4,2775.3,1.28444367]
[1645855019373,0.00430967,2775.4,2775.1,0.90502017]
[1645855019773,0.02677075,2775.6,2775.1,0.90071]
[1645855020027,0.00430967,2775.4,2775.1,0.00431017]
[1645855020626,0.00430967,2775.4,2775.2,0.90068]
[1645855021230,0.00430967,2775.4,2775.2,0.3]
[1645855021431,0.00431229,2775.4,2775.3,1.14274746]
[1645855021832,0.00431229,2775.4,2775.3,1.44274746]
[1645855022033,0.00431229,2775.4,2775.3,1.80244746]
[1645855022235,0.02677075,2775.6,2775.3,1.80244746]
[1645855022432,0.00431221,2775.5,2775.3,1.80244746]
[1645855022832,0.00431221,2775.5,2775.3,1.44274746]
[1645855023432,0.02677075,2775.6,2775.3,1.44274746]
[1645855023867,3.1102,2776.2,2775.3,1.44274746]
[1645855023868,3.6,2775.5,2775.3,1.44274746]
[1645855024067,3.6,2775.5,2775.3,1.44556754]
[1645855024274,3.6,2775.5,2775.3,1.44274746]
[1645855025072,3.60432933,2775.5,2775.3,1.44274746]
[1645855025876,3.6,2775.5,2775.3,1.44274746]
[1645855026076,3.6,2775.5,2775.3,1.14274746]
[1645855026280,3.60432933,2775.5,2775.2,0.3]
[1645855026476,3.60432933,2775.5,2775.1,0.00433007]
[1645855027177,3.6,2775.5,2775.0,0.17850411]
[1645855027380,3.6,2775.5,2775.1,0.00432825]
[1645855027381,0.00432766,2775.4,2775.1,0.00432825]
[1645855028029,0.00432766,2775.4,2775.2,1.30689793]
[1645855028429,3.6,2775.5,2775.2,1.60689793]
[1645855028631,0.00432609,2775.4,2775.2,1.60689793]
[1645855028832,0.00432609,2775.4,2775.2,1.30689793]
[1645855029033,0.00432609,2775.4,2775.1,0.0043266]
[1645855029632,3.62230986,2775.5,2775.0,0.00282008]
[1645855029834,0.00432609,2775.4,2775.1,0.0043266]
[1645855030232,0.00432609,2775.4,2775.1,1.07036659]
[1645855030435,0.00432609,2775.4,2775.1,0.0043266]
[1645855030634,0.00432609,2775.4,2775.0,0.3]
[1645855030835,3.62230986,2775.5,2774.9,0.3]
[1645855031035,0.00432609,2775.4,2775.1,0.0043266]
[1645855031867,3.62230986,2775.5,2775.0,1.31544149]
[1645855032070,3.62230986,2775.5,2775.0,1.61544149]
[1645855032369,0.00432658,2775.4,2775.1,0.00432709]
[1645855032570,0.00432658,2775.4,2775.1,0.90504709]
[1645855032772,0.00432658,2775.4,2775.1,1.20504709]
[1645855033170,3.62230986,2775.5,2775.1,1.20072]
[1645855033371,0.00432658,2775.4,2775.1,1.20504709]
[1645855033569,0.0028082,2775.4,2775.1,1.20504709]
[1645855034371,3.62230986,2775.5,2775.1,1.20072]
[1645855035713,3.62663742,2775.5,2775.1,1.71604819]
[1645855036713,3.62230986,2775.5,2775.1,1.85582]
[1645855036912,3.62663742,2775.5,2775.1,1.86014819]
[1645855037324,3.742e-05,2775.5,2775.1,13.19984819]
[1645855037519,3.742e-05,2775.5,2775.2,0.21511768]
[1645855037718,3.742e-05,2775.5,2775.3,0.6551]
[1645855037918,1.1587,2776.4,2775.3,0.6551]
[1645855037919,1.1587,2776.4,2775.4,1.0]
[1645855038122,0.24976586,2776.5,2775.8,0.3597]
[1645855038318,0.24976586,2776.5,2775.9,0.511]
[1645855038521,0.24976586,2776.5,2776.0,0.1439]
[1645855038776,0.24976586,2776.5,2776.1,17.1507]
[1645855038972,7.5939,2777.6,2776.4,0.3597]
[1645855038973,7.45,2777.6,2776.4,0.3597]
[1645855039170,7.45,2777.6,2776.5,1.41125]
[1645855039371,7.45,2777.6,2776.5,2.88790766]
[1645855039576,5.02195591,2777.5,2776.5,1.0]
[1645855039774,5.02195591,2777.5,2775.9,1.0]
[1645855039775,0.00227606,2776.4,2775.9,1.0]
[1645855039972,0.00227606,2776.4,2776.0,0.3]
[1645855040171,0.00227606,2776.4,2775.8,1.4973]
[1645855040371,0.00227606,2776.4,2775.8,1.1973]
[1645855040570,3.5,2776.8,2775.8,1.4973]
[1645855040776,3.5,2776.8,2775.9,1.10482995]
[1645855040777,1.40613326,2776.8,2775.9,1.10482995]
[1645855040973,0.00227452,2776.3,2775.7,4.3965]
[1645855041173,0.00227452,2776.3,2775.7,4.2526]
[1645855041375,0.00227452,2776.3,2775.7,1.0]
[1645855041775,0.00227452,2776.3,2775.3,2.5124]
[1645855041776,0.00227452,2776.3,2775.3,3.8124]
[1645855041976,3.8597,2776.7,2775.3,5.9494]
[1645855042177,3.8597,2776.7,2775.3,6.9494]
[1645855042378,0.004756,2776.1,2775.3,6.9494]
[1645855042828,0.004756,2776.1,2775.3,4.2761]
[1645855043226,0.90073,2776.5,2775.3,4.2761]
[1645855043828,0.00475626,2775.8,2775.3,4.2761]
[1645855044428,0.00475626,2775.8,2775.7,1.23559368]
[1645855044632,0.90073,2776.5,2775.7,1.23559368]
[1645855044830,0.00475638,2775.7,2775.3,5.5761]
[1645855045330,0.00475638,2775.7,2775.4,0.90062]
[1645855045730,3.5,2776.7,2775.4,1.11002539]
[1645855046035,0.00475638,2775.7,2775.5,0.3597]
[1645855046272,0.00475638,2775.7,2775.6,1.69878893]
[1645855046464,5.638e-05,2775.7,2775.6,1.55715324]
[1645855046664,1.52214002,2777.2,2775.8,0.3597]
[1645855046866,1.52214002,2777.2,2775.9,11.9946]
[1645855047066,1.52214002,2777.2,2776.1,1.0]
[1645855047265,1.52214002,2777.2,2776.2,0.1439]
[1645855047467,1.52214002,2777.2,2776.4,1.09267133]
[1645855047671,1.52214002,2777.2,2776.2,0.35206641]
[1645855048472,1.52214002,2777.2,2776.1,0.3]
[1645855048675,0.01752066,2776.8,2775.9,2.10065]
[1645855048874,0.01752066,2776.8,2776.1,1.0290471]
[1645855049875,0.01752066,2776.8,2776.3,0.90033]
[1645855050117,0.01752066,2776.8,2776.3,1.11525565]
[1645855050315,0.01752066,2776.8,2776.3,0.90033]
[1645855050514,0.01752066,2776.8,2776.3,0.3]
[1645855050716,0.01752066,2776.8,2776.2,0.1439]
[1645855050918,0.00490738,2776.7,2776.0,0.15869317]
[1645855051118,0.00490738,2776.7,2775.7,0.25]
[1645855051320,1.41081741,2776.7,2775.6,1.3]
[1645855051522,1.41081741,2776.7,2775.6,0.3]
[1645855051717,1.41081741,2776.7,2775.5,1.20057]
[1645855052115,1.41081741,2776.7,2775.4,6.47468662]
[1645855052322,0.00490772,2776.3,2775.4,2.185]
[1645855052720,0.00490772,2776.3,2775.4,1.185]
[1645855052921,0.00490772,2776.3,2775.3,3.14190956]
[1645855053124,3.8597,2776.6,2775.3,3.14190956]
[1645855053125,0.511,2776.4,2775.3,3.137]
[1645855053320,5.02244424,2776.3,2775.3,3.137]
[1645855053521,0.00490798,2776.0,2775.3,0.00490928]
[1645855054366,3.5,2776.3,2775.2,3.7336]
[1645855054569,0.00490806,2775.8,2775.3,0.0049091]
[1645855055671,0.00490806,2775.8,2775.4,11.3397]
[1645855055870,0.00490806,2775.8,2775.4,0.4441]
[1645855056069,0.00490806,2775.8,2775.5,0.19215816]
[1645855056273,0.00458056,2775.8,2775.5,0.19215816]
[1645855056574,8.056e-05,2775.8,2775.6,0.90056]
[1645855056771,10.2,2777.2,2775.7,11.1241]
[1645855056970,1.52204155,2777.1,2775.8,0.3597]
[1645855057170,1.52204155,2777.1,2775.9,0.1439]
[1645855057372,1.52204155,2777.1,2775.9,0.32505997]
[1645855057619,1.52204155,2777.1,2776.4,1.06447161]
[1645855057817,1.47204155,2777.1,2776.4,1.06447161]
[1645855059518,0.0046095,2776.9,2776.4,1.06447161]
[1645855060121,0.0046095,2776.9,2776.4,12.04447161]
[1645855060325,0.0046095,2776.9,2776.5,15.88385]
[1645855060522,4.6353,2777.7,2776.5,16.59522143]
[1645855060720,0.00460958,2776.8,2776.6,11.98]
[1645855060919,0.00460958,2776.8,2776.7,0.1439]
[1645855061121,0.00460958,2776.8,2776.7,14.9836]
[1645855061122,9.58e-06,2776.8,2776.7,14.9836]
[1645855061403,0.01261822,2778.8,2777.1,2.15958]
[1645855061404,4.68,2778.4,2777.1,2.15958]
[1645855061598,4.5361,2778.4,2777.3,0.51479051]
[1645855061801,1.224,2778.4,2777.3,0.51479051]
[1645855061996,2.43482554,2778.5,2777.4,14.9836]
[1645855062196,2.43482554,2778.5,2777.9,1.20284862]
[1645855062396,2.43482554,2778.5,2778.1,1.08813601]
[1645855062599,2.43482554,2778.5,2778.1,0.89971]
[1645855062801,2.43482554,2778.5,2778.1,1.51813776]
[1645855063003,3.6,2778.4,2778.2,0.19092918]
[1645855063201,3.6,2778.4,2778.3,10.98]
[1645855063398,3.6,2778.4,2778.3,0.1439]
[1645855063601,3.6,2778.4,2778.3,0.3]
[1645855063802,3.6,2778.4,2778.3,0.1439]
[1645855064203,3.6,2778.4,2778.3,0.3]
[1645855064405,3.6,2778.4,2778.2,0.20217669]
[1645855064805,3.6,2778.4,2778.0,3.75908]
[1645855065016,3.6,2778.4,2778.1,0.20809176]
[1645855065821,3.60490235,2778.4,2778.0,2.79938]
[1645855066120,3.60490235,2778.4,2778.0,1.0]
[1645855066319,3.60490235,2778.4,2777.8,0.3]
[1645855066517,3.60490235,2778.4,2777.5,3.19351]
[1645855066518,3.60490235,2778.4,2777.6,0.16726991]
[1645855066717,3.6,2778.4,2777.6,0.16726991]
[1645855066921,3.6,2778.4,2777.7,1.09052696]
[1645855067122,3.6,2778.4,2777.5,2.04961]
[1645855067123,0.00490248,2778.2,2777.5,2.04961]
[1645855067321,0.00490248,2778.2,2777.0,5.95559838]
[1645855067322,0.00490248,2778.2,2777.0,4.7982]
[1645855067724,0.51590248,2778.2,2776.9,2.9255]
[1645855068026,1.77579248,2778.2,2776.9,2.9255]
[1645855068224,1.77579248,2778.2,2776.6,0.144]
[1645855068428,2.91329248,2778.2,2776.6,0.144]
[1645855068626,2.90839,2778.2,2776.6,0.144]
[1645855068879,0.0049029,2777.7,2776.6,0.144]
[1645855069080,0.9052729,2777.7,2776.5,0.25]
[1645855069279,1.22037,2777.7,2776.5,0.25]
[1645855069479,0.00457274,2777.3,2776.3,0.1439]
[1645855069679,0.00457274,2777.3,2776.5,1.19743879]
[1645855070277,0.00457274,2777.3,2776.5,1.49743879]
[1645855070477,1.22037,2777.7,2776.5,0.3]
[1645855070677,0.00424532,2777.0,2776.5,0.3]
[1645855070880,0.00424532,2777.0,2776.4,1.2003]
[1645855071077,0.00424532,2777.0,2776.5,0.1439]
[1645855071680,3.5,2777.6,2776.5,1.33807579]
[1645855071878,0.00424535,2776.9,2776.5,0.1439]
[1645855072278,0.00424535,2776.9,2776.4,2.6442]
[1645855072524,0.00424535,2776.9,2776.5,0.21703358]
[1645855073030,4.40037,2777.7,2776.5,1.36648779]
[1645855073227,0.00428331,2776.9,2776.5,1.36648779]
[1645855073428,0.00428331,2776.9,2776.5,1.51683237]
[1645855073628,0.00428331,2776.9,2776.5,3.31718237]
[1645855073828,0.00428331,2776.9,2776.6,0.90017]
[1645855074029,1.3384,2777.8,2776.6,0.90017]
[1645855074030,1.1945,2777.8,2776.6,0.90017]
[1645855074229,0.00432173,2776.9,2776.5,3.16683779]
[1645855074428,0.00432173,2776.9,2776.3,1.36308959]
[1645855074429,0.00432173,2776.9,2776.3,1.32315782]
[1645855074632,0.00432173,2776.9,2776.3,0.31680403]
[1645855075230,1.26003,2777.7,2776.3,0.31680403]
[1645855075430,0.90033,2777.7,2776.6,1.13111376]
[1645855075631,0.00432165,2776.9,2776.5,0.90025]
[1645855075830,0.00432165,2776.9,2776.5,1.20025]
[1645855076030,0.00432165,2776.9,2776.6,0.20353388]
[1645855076576,0.90033,2777.7,2776.6,0.20353388]
[1645855076779,0.00432177,2776.9,2776.6,0.20353388]
[1645855076978,0.00432177,2776.9,2776.6,1.25380771]
[1645855077180,0.00432177,2776.9,2776.3,0.1439]
[1645855077780,0.90046,2777.3,2776.3,0.1439]
[1645855077980,0.00432383,2776.9,2776.3,0.1439]
[1645855078384,0.00432383,2776.9,2775.7,0.90484571]
[1645855078781,0.00432383,2776.9,2775.7,1.36411551]
[1645855078980,0.00432383,2776.9,2775.8,0.42032012]
[1645855079379,0.90490363,2776.9,2775.8,0.42032012]
[1645855079787,0.90490363,2776.9,2775.8,0.25]
[1645855080030,0.90058,2776.9,2775.8,0.25]
[1645855080530,0.90490363,2776.9,2775.8,0.25]
[1645855080735,0.511,2776.8,2775.8,0.25]
[1645855082333,0.00432289,2776.9,2775.9,1.30367063]
[1645855082735,3.6,2776.8,2775.9,1.30367063]
[1645855083133,3.6,2776.8,2775.8,0.45486372]
[1645855083334,3.6,2776.8,2775.8,0.25]
[1645855083983,3.62452892,2776.8,2775.8,0.25]
[1645855084380,3.62452892,2776.8,2775.8,0.4506355]
[1645855084580,3.62452892,2776.8,2775.8,1.29831501]
[1645855084780,3.62452892,2776.8,2775.8,1.47776609]
[1645855085582,3.62452892,2776.8,2775.8,4.97776609]
[1645855085785,3.62452892,2776.8,2776.6,1.07375439]
[1645855085786,3.62322421,2776.8,2776.6,1.07375439]
[1645855086182,3.62322421,2776.8,2776.6,1.37375439]
[1645855086383,3.62322421,2776.8,2776.7,0.19389896]